bitfinex/quotes_BTCUSD_20230403
["timestamp","ask_amount","ask_price","bid_price","bid_amount"]
[1680556614017,0.00018,27454.0,27452.0,0.55427681]
[1680556614260,0.3873,27466.0,27452.0,0.55427681]
[1680556614261,0.02024,27473.0,27466.0,0.17976]
[1680556614500,0.01588917,27471.0,27467.0,0.14189681]
[1680556614729,0.26506054,27473.0,27467.0,0.14189681]
[1680556614730,0.00018,27473.0,27469.0,0.054606]
[1680556614961,0.0014168,27474.0,27470.0,0.14189681]
[1680556615193,0.0014168,27474.0,27471.0,0.01907968]
[1680556615428,0.0014168,27474.0,27472.0,0.44090435]
[1680556615644,0.2,27481.0,27475.0,0.1084032]
[1680556615645,0.1799968,27481.0,27475.0,0.1084032]
[1680556615867,0.07472958,27474.0,27472.0,0.22270825]
[1680556616093,0.07472958,27474.0,27472.0,0.16078825]
[1680556616334,0.07472958,27474.0,27473.0,0.01798679]
[1680556616804,0.00018,27479.0,27473.0,0.62609316]
[1680556617031,0.01224857,27483.0,27475.0,0.0884]
[1680556617032,0.0030069,27483.0,27475.0,0.0884]
[1680556617253,0.0030069,27483.0,27476.0,0.13889681]
[1680556617476,6e-05,27484.0,27479.0,0.0643]
[1680556617695,0.1980069,27485.0,27480.0,0.13889681]
[1680556617923,0.1980069,27485.0,27480.0,0.49378737]
[1680556618149,0.1981869,27485.0,27482.0,0.0679]
[1680556618381,0.1980069,27485.0,27483.0,0.13389681]
[1680556618598,0.1980069,27485.0,27482.0,0.04534999]
[1680556618833,0.00018,27486.0,27482.0,0.04534999]
[1680556618834,0.00018,27487.0,27483.0,0.0085]
[1680556619089,0.20740908,27491.0,27483.0,0.14239681]
[1680556619312,0.1981869,27492.0,27485.0,0.0549931]
[1680556619534,0.1981869,27492.0,27486.0,0.0085]
[1680556619755,0.1981869,27492.0,27487.0,0.14024612]
[1680556619756,0.00012,27492.0,27487.0,0.14024612]
[1680556619980,0.20707553,27493.0,27487.0,0.14024612]
[1680556620212,0.10120878,27493.0,27489.0,0.0546]
[1680556620479,0.5413,27497.0,27489.0,0.0546]
[1680556620480,0.00018,27497.0,27496.0,0.09879122]
[1680556620703,0.0537465,27493.0,27492.0,0.00012]
[1680556620920,0.0008865,27493.0,27491.0,0.008274]
[1680556621148,0.0008865,27493.0,27492.0,0.0299]
[1680556621386,0.0008865,27493.0,27492.0,0.38461056]
[1680556621615,0.0008865,27493.0,27492.0,0.43948362]
[1680556622284,0.0008865,27493.0,27492.0,0.037812]
[1680556622499,0.0008865,27493.0,27492.0,0.046312]
[1680556623217,0.15187631,27493.0,27488.0,0.21300186]
[1680556623446,0.14189681,27492.0,27488.0,0.21300186]
[1680556623673,0.14189681,27492.0,27491.0,0.18435547]
[1680556623901,0.0101595,27493.0,27489.0,0.17428826]
[1680556624125,0.0008865,27493.0,27491.0,0.0296]
[1680556624345,0.0008865,27493.0,27491.0,0.0302]
[1680556624570,0.0099795,27493.0,27491.0,0.0302]
[1680556624792,0.05142,27492.0,27485.0,0.00018]
[1680556625020,0.14189681,27491.0,27486.0,0.19737745]
[1680556625252,0.14189681,27491.0,27489.0,0.17712889]
[1680556625479,0.009093,27492.0,27488.0,0.0283]
[1680556625702,0.009093,27492.0,27490.0,0.0306]
[1680556625930,0.04083,27491.0,27485.0,6e-05]
[1680556626163,0.04083,27491.0,27484.0,0.03960944]
[1680556626164,0.074632,27489.0,27484.0,0.03948944]
[1680556626382,0.074632,27489.0,27486.0,0.18206447]
[1680556626383,0.18924581,27489.0,27486.0,0.18206447]
[1680556626608,0.045853,27488.0,27486.0,0.18206447]
[1680556626897,0.009094,27490.0,27487.0,0.35471056]
[1680556627112,0.0008865,27493.0,27490.0,0.21604737]
[1680556627332,0.0008865,27493.0,27490.0,0.20505437]
[1680556627563,0.0008865,27493.0,27491.0,0.36321056]
[1680556627801,0.0008865,27493.0,27492.0,0.206765]
[1680556628032,0.0008865,27493.0,27492.0,0.83237855]
[1680556628492,0.0008865,27493.0,27492.0,0.83255855]
[1680556628724,0.0008865,27493.0,27492.0,0.93973534]
[1680556628943,0.0008865,27493.0,27492.0,0.93955534]
[1680556629642,0.0008865,27493.0,27492.0,0.93973534]
[1680556630569,0.0008865,27493.0,27492.0,1.13955534]
[1680556630814,0.001515,27501.0,27496.0,0.136994]
[1680556631049,0.001515,27501.0,27497.0,0.73098796]
[1680556631269,0.001515,27501.0,27498.0,0.028344]
[1680556631491,0.001515,27501.0,27499.0,0.010946]
[1680556631748,0.001515,27501.0,27500.0,0.01866]
[1680556631988,0.001515,27501.0,27500.0,0.68245156]
[1680556632221,0.001515,27501.0,27500.0,0.81888672]
[1680556632676,0.001515,27501.0,27500.0,0.50980572]
[1680556632904,0.001515,27501.0,27500.0,0.52798672]
[1680556633123,0.001515,27501.0,27500.0,0.06786]
[1680556633350,0.001515,27501.0,27500.0,0.05936]
[1680556633585,0.001515,27501.0,27497.0,0.010905]
[1680556633815,0.15250181,27501.0,27497.0,0.010905]
[1680556634035,0.001695,27501.0,27497.0,0.010905]
[1680556634258,0.001515,27501.0,27497.0,0.04558433]
[1680556634471,0.001515,27501.0,27498.0,0.010203]
[1680556634750,0.001515,27501.0,27493.0,0.036372]
[1680556634751,0.14189681,27500.0,27492.0,0.1666087]
[1680556634974,0.14189681,27499.0,27492.0,0.1664287]
[1680556635197,0.009091,27497.0,27492.0,0.1664287]
[1680556635430,0.14189681,27496.0,27495.0,0.0244]
[1680556635661,0.009272,27496.0,27495.0,0.0244]
[1680556635895,0.009092,27496.0,27495.0,0.0244]
[1680556636570,0.009092,27496.0,27490.0,0.010517]
[1680556636816,0.14189681,27495.0,27491.0,0.06928117]
[1680556637047,0.15116881,27495.0,27489.0,0.68229467]
[1680556637281,0.15116881,27495.0,27493.0,0.0243]
[1680556637509,0.047978,27494.0,27493.0,0.0243]
[1680556637733,0.075255,27494.0,27493.0,0.0243]
[1680556637966,0.00018,27494.0,27493.0,0.0243]
[1680556638438,0.00018,27496.0,27493.0,0.0243]
[1680556638903,0.04704,27495.0,27493.0,0.0243]
[1680556639133,0.00018,27496.0,27493.0,0.0243]
[1680556639329,0.047654,27495.0,27493.0,0.0243]
[1680556639657,0.00018,27496.0,27493.0,0.0243]
[1680556639855,0.009092,27496.0,27493.0,0.0243]
[1680556640098,0.057414,27495.0,27493.0,0.0243]
[1680556640334,0.18758,27494.0,27493.0,0.0243]
[1680556640551,0.215037,27494.0,27493.0,0.0243]
[1680556640777,0.209857,27494.0,27493.0,0.0243]
[1680556641665,0.068957,27494.0,27493.0,0.0243]
[1680556642805,0.050772,27494.0,27493.0,0.0243]
[1680556643008,0.050772,27494.0,27487.0,0.00018]
[1680556643009,0.04168,27494.0,27487.0,0.00018]
[1680556643270,0.15098981,27493.0,27487.0,0.0416062]
[1680556643496,1.35753443,27492.0,27488.0,0.0085]
[1680556643722,1.35528043,27491.0,27490.0,0.0249]
[1680556643953,1.30940143,27491.0,27490.0,0.77729756]
[1680556644173,6e-05,27492.0,27491.0,0.02328]
[1680556644174,0.00018,27492.0,27491.0,0.02328]
[1680556644414,0.001515,27501.0,27492.0,0.434061]
[1680556644416,1.30912353,27500.0,27492.0,0.434061]
[1680556644655,1.30930353,27500.0,27494.0,0.3795]
[1680556644882,1.30930353,27500.0,27495.0,0.018184]
[1680556645111,1.30930353,27500.0,27496.0,0.35471056]
[1680556645336,1.30912353,27500.0,27497.0,0.429883]
[1680556645554,1.30912353,27500.0,27497.0,0.78459356]
[1680556645555,1.30930353,27500.0,27497.0,0.78459356]
[1680556645770,1.30930353,27500.0,27498.0,0.10879716]
[1680556646254,1.30930353,27500.0,27498.0,0.33290371]
[1680556647197,1.30930353,27500.0,27498.0,0.23260655]
[1680556647414,1.30930353,27500.0,27499.0,0.0479]
[1680556647640,1.34532653,27500.0,27499.0,6.001e-05]
[1680556647865,1.34532653,27500.0,27499.0,0.02400001]
[1680556647866,1.34526653,27500.0,27499.0,0.02400001]
[1680556648538,1.30912353,27500.0,27499.0,0.03250001]
[1680556648758,1.30912353,27500.0,27499.0,0.05410209]
[1680556648983,1.30930353,27500.0,27499.0,0.05410209]
[1680556649652,1.30930353,27500.0,27499.0,0.06525798]
[1680556649913,0.46915569,27500.0,27499.0,0.41996854]
[1680556650133,0.001695,27501.0,27500.0,0.024598]
[1680556650360,0.001515,27501.0,27500.0,0.92658956]
[1680556650588,0.001515,27501.0,27500.0,1.1622958]
[1680556650837,0.001515,27501.0,27500.0,0.66648524]
[1680556651300,0.005602,27510.0,27500.0,0.66648524]
[1680556651528,0.159274,27511.0,27500.0,0.66648524]
[1680556651529,0.1411,27511.0,27502.0,0.3795]
[1680556651752,0.009087,27510.0,27503.0,0.032499]
[1680556651984,0.009087,27510.0,27506.0,0.0247]
[1680556652468,0.009087,27510.0,27506.0,0.0215793]
[1680556652688,0.0431586,27505.0,27501.0,0.00012]
[1680556652918,0.0431586,27505.0,27499.0,0.47195798]
[1680556652919,0.18510281,27504.0,27499.0,0.03293798]
[1680556653144,0.15098581,27504.0,27499.0,0.03293798]
[1680556653368,0.0431586,27505.0,27502.0,0.3795]
[1680556653596,0.0331586,27505.0,27501.0,0.01268]
[1680556653789,0.0331586,27505.0,27501.0,0.0125]
[1680556654259,0.0331586,27505.0,27502.0,0.388]
[1680556654490,0.0331586,27505.0,27503.0,0.75684056]
[1680556654717,0.0331586,27505.0,27503.0,0.07780206]
[1680556654968,0.0331586,27505.0,27503.0,0.0121]
[1680556655643,0.0331586,27505.0,27504.0,0.0085]
[1680556656321,0.0331586,27505.0,27504.0,0.062709]
[1680556656544,0.0331586,27505.0,27504.0,0.09530361]
[1680556657668,0.0331586,27505.0,27504.0,0.82951417]
[1680556657892,0.0331586,27505.0,27504.0,1.1363139]
[1680556658114,0.0331586,27505.0,27504.0,0.9545339]
[1680556658354,0.0331586,27505.0,27504.0,0.78161334]
[1680556658584,0.0331586,27505.0,27504.0,1.1363239]
[1680556658843,0.0331586,27505.0,27504.0,0.9545339]
[1680556659288,0.21401497,27512.0,27504.0,0.9543539]
[1680556659503,0.08521901,27512.0,27506.0,0.3795]
[1680556659720,0.08521901,27512.0,27507.0,0.0085]
[1680556660177,0.08521901,27512.0,27508.0,0.35471056]
[1680556660401,0.23733901,27514.0,27512.0,0.077752]
[1680556660402,0.02267001,27514.0,27512.0,0.077752]
[1680556660623,0.02267001,27514.0,27513.0,0.41121436]
[1680556660624,0.02255001,27514.0,27513.0,0.41121436]
[1680556660845,0.02255001,27514.0,27513.0,0.81756736]
[1680556661353,0.02266001,27517.0,27513.0,0.81738736]
[1680556661529,0.03255001,27518.0,27517.0,0.27461314]
[1680556661756,6e-05,27520.0,27517.0,0.27461314]
[1680556661757,0.0257234,27521.0,27518.0,0.3795]
[1680556661981,0.0257234,27521.0,27517.0,0.8514057]
[1680556661982,0.0257234,27521.0,27520.0,0.5207]
[1680556662226,0.0257234,27521.0,27520.0,0.53719256]
[1680556662465,0.0257234,27521.0,27520.0,0.44283262]
[1680556662689,0.0257234,27521.0,27520.0,0.53059162]
[1680556662981,0.0257234,27521.0,27520.0,0.87375462]
[1680556664048,0.0257234,27521.0,27520.0,0.87138162]
[1680556664321,0.0257234,27521.0,27520.0,1.0315004]
[1680556664591,0.0030012,27527.0,27522.0,0.458346]
[1680556664859,0.0030012,27527.0,27524.0,0.3795]
[1680556665117,0.0030012,27527.0,27525.0,0.023444]
[1680556665572,0.0030012,27527.0,27525.0,0.031944]
[1680556665846,0.0030012,27527.0,27526.0,0.177922]
[1680556666147,0.0030012,27527.0,27526.0,0.93879656]
[1680556666373,0.0030012,27527.0,27526.0,0.036722]
[1680556666608,0.0030012,27527.0,27526.0,0.0127]
[1680556668432,0.0030012,27527.0,27526.0,0.75541056]
[1680556668656,0.0030012,27527.0,27526.0,0.0212]
[1680556668875,0.0030012,27527.0,27526.0,0.0127]
[1680556669331,0.0030012,27527.0,27526.0,0.030864]
[1680556669561,0.0030012,27527.0,27526.0,0.40875556]
[1680556669778,0.0030012,27527.0,27526.0,0.84170422]
[1680556670023,0.0030012,27527.0,27526.0,0.031681]
[1680556670701,1.10032005,27531.0,27526.0,0.049845]
[1680556670933,1.10032005,27531.0,27527.0,0.0085]
[1680556671161,1.10032005,27531.0,27528.0,0.0122]
[1680556671402,0.0245567,27532.0,27530.0,0.35471056]
[1680556671619,0.02266001,27538.0,27531.0,0.87175762]
[1680556671882,0.02266001,27538.0,27536.0,0.3795]
[1680556672100,0.02266001,27538.0,27537.0,0.38691956]
[1680556672332,0.02266001,27538.0,27537.0,0.04719196]
[1680556672577,0.02266001,27538.0,27537.0,0.19123324]
[1680556672799,0.01902643,27538.0,27537.0,0.0085]
[1680556673015,0.01902643,27538.0,27535.0,0.388]
[1680556673236,0.01902643,27538.0,27536.0,0.023991]
[1680556673458,0.01902643,27538.0,27537.0,0.0085]
[1680556673744,0.01902643,27538.0,27537.0,0.08602016]
[1680556675654,0.01902643,27538.0,27537.0,0.44073072]
[1680556675867,0.01885409,27538.0,27537.0,1.03624107]
[1680556676086,0.01885409,27538.0,27537.0,0.98392091]
[1680556676299,0.01885409,27538.0,27537.0,0.96576391]
[1680556676523,0.01885409,27538.0,27537.0,0.058053]
[1680556676756,0.01885409,27538.0,27537.0,0.437553]
[1680556676991,0.01885409,27538.0,27537.0,0.85419386]
[1680556677426,0.01885409,27538.0,27537.0,1.02673535]
[1680556677659,0.03355101,27544.0,27540.0,0.02114591]
[1680556677882,0.04444301,27544.0,27540.0,0.02114591]
[1680556678106,0.046013,27543.0,27540.0,0.02114591]
[1680556678330,0.035064,27542.0,27540.0,0.02114591]
[1680556678554,0.010892,27542.0,27540.0,0.02114591]
[1680556679016,0.010892,27543.0,27540.0,0.02114591]
[1680556679262,0.03361101,27544.0,27540.0,0.03948643]
[1680556679475,0.046226,27543.0,27541.0,0.0255]
[1680556679666,0.035899,27542.0,27541.0,0.0255]
[1680556679881,0.046791,27542.0,27540.0,0.02114591]
[1680556680115,0.210892,27542.0,27541.0,0.0251]
[1680556680338,0.386734,27542.0,27541.0,0.0251]
[1680556680803,0.2,27538.0,27533.0,0.00018]
[1680556681016,0.076261,27537.0,27531.0,0.03565106]
[1680556681241,0.3407,27535.0,27531.0,0.03565106]
[1680556681502,0.25273681,27534.0,27528.0,0.00018]
[1680556681717,0.44,27533.0,27528.0,6e-05]
[1680556681942,0.44,27533.0,27526.0,0.18480573]
[1680556681943,0.17458581,27532.0,27526.0,0.18480573]
[1680556682172,0.17476581,27532.0,27526.0,0.18480573]
[1680556682396,0.17476581,27532.0,27529.0,0.0162]
[1680556682618,0.035239,27531.0,27529.0,0.0162]
[1680556682854,0.076279,27530.0,27529.0,0.01608938]
[1680556683078,0.62902,27530.0,27529.0,0.01608938]
[1680556683359,0.62902,27530.0,27521.0,0.00018]
[1680556683637,0.3795,27520.0,27512.0,0.00018]
[1680556683891,0.1412,27517.0,27512.0,0.00018]
[1680556684108,0.56431,27517.0,27516.0,0.016]
[1680556684331,0.631576,27517.0,27516.0,0.016]
[1680556684837,0.631576,27517.0,27510.0,0.2143207]
[1680556685058,0.17549281,27516.0,27510.0,0.2145007]
[1680556685316,0.4,27502.0,27493.0,0.00916074]
[1680556685554,0.4,27502.0,27494.0,0.7]
[1680556685555,0.3795,27495.0,27494.0,0.7]
[1680556685782,0.3795,27495.0,27489.0,0.00018]
[1680556685783,0.3795,27493.0,27489.0,0.00018]
[1680556686024,0.5795,27490.0,27485.0,0.21230409]
[1680556686252,0.18976681,27489.0,27485.0,0.21230409]
[1680556686477,0.1412,27486.0,27483.0,0.20305045]
[1680556686700,0.17845781,27485.0,27483.0,0.20305045]
[1680556686923,0.17845781,27485.0,27483.0,0.0206]
[1680556686924,0.188781,27484.0,27483.0,0.0206]
[1680556687147,0.036846,27484.0,27483.0,0.0206]
[1680556687378,0.04365,27492.0,27483.0,0.0206]
[1680556687379,0.00018,27485.0,27483.0,0.0206]
[1680556687600,0.00018,27487.0,27483.0,0.0206]
[1680556688275,0.00018,27487.0,27483.0,0.04381856]
[1680556688721,0.00018,27487.0,27484.0,0.02213001]
[1680556688949,0.2969,27495.0,27485.0,0.35471056]
[1680556689183,0.00018,27496.0,27488.0,0.2]
[1680556689425,0.02636395,27503.0,27488.0,0.2]
[1680556689426,0.00018,27502.0,27491.0,0.35471056]
[1680556689643,0.00018,27503.0,27496.0,0.18184]
[1680556689885,0.22625236,27508.0,27502.0,0.2]
[1680556689886,0.00018,27507.0,27502.0,0.2]
[1680556690102,0.02625236,27508.0,27498.0,0.018183]
[1680556690103,0.02625236,27508.0,27503.0,0.224009]
[1680556690329,0.00018,27512.0,27504.0,0.023597]
[1680556690555,0.2969,27515.0,27503.0,0.55471056]
[1680556690556,0.00018,27513.0,27503.0,0.75545014]
[1680556690781,0.00018,27513.0,27504.0,0.0085]
[1680556691000,0.00018,27513.0,27505.0,0.07639501]
[1680556691235,0.00018,27513.0,27504.0,0.0085]
[1680556691236,0.15298081,27513.0,27504.0,0.0085]
[1680556691465,0.14189681,27512.0,27502.0,0.44303097]
[1680556691687,0.15298081,27512.0,27503.0,0.0085]
[1680556692348,0.15298081,27512.0,27502.0,0.0085]
[1680556692592,0.15298081,27512.0,27503.0,0.02050507]
[1680556692814,0.17568387,27512.0,27503.0,0.02050507]
[1680556693710,0.14207681,27512.0,27503.0,0.02050507]
[1680556693926,0.14207681,27512.0,27504.0,0.0085]
[1680556694141,0.00018,27512.0,27504.0,0.20643853]
[1680556694363,0.14207681,27512.0,27505.0,0.04573636]
[1680556694612,0.00018,27512.0,27506.0,0.0085]
[1680556694821,0.14189681,27512.0,27507.0,0.024965]
[1680556695040,0.14207681,27512.0,27507.0,0.024965]
[1680556695252,0.00018,27512.0,27506.0,0.0085]
[1680556695473,0.14189681,27511.0,27507.0,0.022897]
[1680556695696,0.14189681,27511.0,27505.0,0.02269436]
[1680556695697,0.00018,27512.0,27508.0,0.0085]
[1680556695932,0.00018,27514.0,27509.0,0.35471056]
[1680556696216,0.00012,27516.0,27510.0,0.40620256]
[1680556696449,0.02302588,27522.0,27511.0,0.024382]
[1680556696450,0.00018,27522.0,27511.0,0.024382]
[1680556696666,0.00018,27522.0,27512.0,0.38138356]
[1680556696897,0.00018,27522.0,27513.0,0.403364]
[1680556697107,0.00018,27522.0,27515.0,0.5795]
[1680556697318,0.00018,27524.0,27516.0,0.75751756]
[1680556697581,0.02742297,27524.0,27517.0,0.0085]
[1680556698027,0.010899,27525.0,27517.0,0.0085]
[1680556698028,0.00018,27525.0,27518.0,0.75673656]
[1680556698279,0.14189681,27528.0,27520.0,0.018168]
[1680556698280,0.00018,27526.0,27520.0,0.018168]
[1680556698505,0.00018,27526.0,27522.0,0.3795]
[1680556698751,0.2,27533.0,27523.0,0.032273]
[1680556698752,0.00018,27528.0,27523.0,0.032273]
[1680556698970,0.00018,27528.0,27524.0,0.03581188]
[1680556699415,0.00018,27528.0,27525.0,0.0085]
[1680556700760,0.14189681,27527.0,27519.0,0.18267669]
[1680556700973,0.010899,27525.0,27519.0,0.18267669]
[1680556701197,0.14189681,27524.0,27515.0,0.17305552]
[1680556701411,0.032701,27522.0,27515.0,0.17287552]
[1680556701626,0.14189681,27521.0,27520.0,0.02137494]
[1680556701850,0.66419508,27527.0,27520.0,0.3760855]
[1680556701851,0.259,27527.0,27520.0,0.3760855]
[1680556702075,0.00395409,27540.0,27527.0,0.5795]
[1680556702310,0.02420164,27540.0,27529.0,0.3795]
[1680556702515,0.01502709,27540.0,27530.0,0.07342106]
[1680556703180,0.14189681,27539.0,27530.0,0.07342106]
[1680556703405,0.14189681,27539.0,27527.0,0.00018]
[1680556703406,0.032683,27537.0,27527.0,0.00018]
[1680556703644,0.42586281,27536.0,27523.0,0.1650551]
[1680556703912,0.010896,27533.0,27524.0,0.01650551]
[1680556704127,0.14189681,27532.0,27524.0,0.01650551]
[1680556704352,0.010897,27530.0,27524.0,0.01650551]
[1680556704594,0.010897,27530.0,27521.0,0.03778855]
[1680556704595,0.14189681,27529.0,27521.0,0.03778855]
[1680556704810,0.010898,27527.0,27521.0,0.16388798]
[1680556705041,0.80578881,27526.0,27520.0,0.02137494]
[1680556705288,0.56118,27521.0,27520.0,0.02137494]
[1680556705528,0.56118,27521.0,27508.0,0.2093956]
[1680556705529,0.2,27519.0,27511.0,0.00018]
[1680556705773,0.2,27519.0,27510.0,0.00018]
[1680556705774,0.2605,27515.0,27510.0,0.00018]
[1680556706016,0.27110852,27514.0,27510.0,0.00018]
[1680556706249,0.704711,27513.0,27504.0,0.00018]
[1680556706536,0.010905,27511.0,27502.0,0.00018]
[1680556706753,0.14189681,27510.0,27502.0,0.22463675]
[1680556706977,0.15280181,27510.0,27502.0,0.22463675]
[1680556707623,0.15280181,27510.0,27503.0,0.02077442]
[1680556707849,0.15280181,27510.0,27503.0,0.02095442]
[1680556708073,0.15280181,27510.0,27503.0,0.04549554]
[1680556708295,0.024609,27509.0,27503.0,0.04549554]
[1680556708522,0.17741081,27509.0,27503.0,0.04549554]
[1680556708773,0.024337,27508.0,27503.0,0.02095442]
[1680556708971,0.15280281,27508.0,27503.0,0.02095442]
[1680556709199,0.3,27510.0,27504.0,0.60216313]
[1680556709421,0.00018,27513.0,27505.0,0.11775971]
[1680556709652,0.310902,27516.0,27505.0,0.11793971]
[1680556709874,0.45279881,27516.0,27505.0,0.11793971]
[1680556710116,0.14189681,27515.0,27505.0,0.09976271]
[1680556710377,0.010904,27512.0,27506.0,0.03224258]
[1680556710598,0.010904,27512.0,27506.0,0.00018]
[1680556710599,0.16624481,27511.0,27506.0,0.00018]
[1680556710820,0.036257,27510.0,27503.0,0.02095442]
[1680556711052,0.14189681,27509.0,27503.0,0.02095442]
[1680556711509,0.00018,27514.0,27504.0,0.16665105]
[1680556711760,0.00018,27514.0,27507.0,0.018177]
[1680556711761,0.14189681,27514.0,27507.0,0.018177]
[1680556711988,0.04086654,27516.0,27507.0,0.018176]
[1680556712208,0.04195063,27517.0,27508.0,0.0085]
[1680556712434,0.03104863,27517.0,27509.0,0.018175]
[1680556712666,0.04195063,27517.0,27509.0,0.018175]
[1680556712899,0.17294544,27517.0,27509.0,0.018175]
[1680556713131,0.025121,27516.0,27509.0,0.018175]
[1680556713361,0.00018,27519.0,27510.0,0.74271056]
[1680556713600,0.00018,27525.0,27513.0,0.054519]
[1680556713828,0.010899,27524.0,27514.0,0.0519019]
[1680556714055,0.010899,27524.0,27514.0,0.0700739]
[1680556714056,0.15279581,27524.0,27514.0,0.0700739]
[1680556714526,0.02490702,27522.0,27513.0,0.00018]
[1680556714754,0.010901,27520.0,27512.0,0.00868]
[1680556714979,0.13689681,27519.0,27512.0,0.00868]
[1680556715222,0.13689681,27519.0,27513.0,0.01661991]
[1680556715688,0.13689681,27519.0,27512.0,0.00018]
[1680556715925,0.14779781,27519.0,27512.0,0.00018]
[1680556716166,0.14779781,27519.0,27510.0,0.02109018]
[1680556716167,0.14189681,27519.0,27511.0,0.3795]
[1680556716408,0.14189681,27519.0,27513.0,0.054519]
[1680556716638,0.02422134,27521.0,27514.0,0.0088496]
[1680556716892,0.02422134,27521.0,27514.0,0.0270216]
[1680556717115,0.16611815,27521.0,27514.0,0.0270216]
[1680556717346,0.17701815,27521.0,27514.0,0.0088496]
[1680556717569,0.16611815,27521.0,27514.0,0.0270216]
[1680556717809,0.14189681,27520.0,27515.0,0.00478875]
[1680556718027,0.035576,27519.0,27513.0,0.0208659]
[1680556718249,0.14189681,27518.0,27513.0,0.0208659]
[1680556718478,0.010901,27520.0,27513.0,0.0208659]
[1680556718704,0.010901,27520.0,27512.0,0.028173]
[1680556718705,0.15279781,27520.0,27512.0,0.028173]
[1680556718924,0.14189681,27519.0,27512.0,0.028173]
[1680556719160,0.010902,27518.0,27512.0,0.01018]
[1680556719395,0.14189681,27517.0,27512.0,0.01018]
[1680556719851,0.15279881,27517.0,27512.0,0.01018]
[1680556720064,0.15279881,27517.0,27512.0,0.03355536]
[1680556720281,0.025346,27516.0,27512.0,0.03355536]
[1680556720514,0.15279881,27517.0,27512.0,0.01018]
[1680556720802,0.15279881,27517.0,27509.0,0.0443907]
[1680556720803,0.025527,27516.0,27509.0,0.0443907]
[1680556721032,0.14189681,27515.0,27509.0,0.22128612]
[1680556721268,0.15279981,27515.0,27510.0,0.02214661]
[1680556721505,0.026216,27514.0,27508.0,0.00018]
[1680556721727,0.15280081,27513.0,27506.0,0.00018]
[1680556721963,0.17460781,27513.0,27505.0,0.16334194]
[1680556722206,0.751195,27520.0,27505.0,0.16334194]
[1680556722207,0.00012,27518.0,27515.0,0.2]
[1680556722436,0.02229304,27529.0,27516.0,1.07524656]
[1680556722674,0.02229304,27529.0,27517.0,0.031959]
[1680556722909,0.02229304,27529.0,27520.0,0.018168]
[1680556723145,0.03319004,27529.0,27523.0,0.0402]
[1680556723859,0.010897,27529.0,27523.0,0.0402]
[1680556724800,0.14189681,27529.0,27523.0,0.0402]
[1680556725027,0.15279381,27529.0,27523.0,0.0402]
[1680556725257,0.02037917,27531.0,27523.0,0.058366]
[1680556725474,0.023708,27530.0,27523.0,0.07183078]
[1680556725696,0.15279381,27530.0,27523.0,0.05366478]
[1680556727322,0.00018,27534.0,27528.0,0.73421056]
[1680556727544,0.02255001,27537.0,27528.0,0.73421056]
[1680556727545,0.02255001,27537.0,27530.0,0.50663]
[1680556727773,0.02255001,27537.0,27531.0,1.24116166]
[1680556728015,0.02255001,27537.0,27532.0,0.468258]
[1680556728243,0.02255001,27537.0,27533.0,0.042581]
[1680556728474,0.02255001,27537.0,27534.0,0.08703]
[1680556728720,0.02255001,27537.0,27535.0,0.76643356]
[1680556728954,0.02255001,27537.0,27536.0,0.052309]
[1680556729176,0.02255001,27537.0,27536.0,0.052489]
[1680556729412,0.01755001,27537.0,27536.0,0.118709]
[1680556730098,0.01755001,27537.0,27536.0,0.46491956]
[1680556730324,0.01755001,27537.0,27536.0,0.118709]
[1680556730545,0.01755001,27537.0,27536.0,0.1414931]
[1680556731647,0.01558293,27537.0,27536.0,0.16116385]
[1680556732106,0.01558293,27537.0,27536.0,0.15266385]
[1680556732575,0.01363663,27537.0,27536.0,0.15266385]
[1680556733230,0.01363663,27537.0,27536.0,0.16116385]
[1680556733665,0.01170425,27537.0,27536.0,0.35550748]
[1680556733925,0.01170425,27537.0,27536.0,1.08971804]
[1680556734144,0.01170425,27537.0,27536.0,0.71021804]
[1680556734361,0.01170425,27537.0,27536.0,0.33272338]
[1680556734580,0.00977878,27537.0,27536.0,0.33272338]
[1680556735039,0.00395409,27540.0,27536.0,0.86901394]
[1680556735284,0.00395409,27540.0,27538.0,0.3795]
[1680556735503,0.00395409,27540.0,27539.0,0.45148056]
[1680556735716,0.00395409,27540.0,27539.0,0.52832942]
[1680556736185,0.20400001,27555.0,27539.0,0.52832942]
[1680556736482,0.02255001,27555.0,27548.0,0.73421056]
[1680556736654,0.02255001,27555.0,27549.0,0.08803]
[1680556736883,0.02255001,27555.0,27550.0,0.043976]
[1680556737108,0.02255001,27555.0,27551.0,0.111189]
[1680556737349,0.02255001,27555.0,27552.0,0.76915056]
[1680556737588,0.03853503,27559.0,27553.0,0.12602386]
[1680556737837,0.010886,27558.0,27553.0,0.08457986]
[1680556738059,0.010886,27558.0,27553.0,0.075]
[1680556738291,0.02765003,27559.0,27554.0,0.56281656]
[1680556738533,0.02765003,27559.0,27555.0,0.412654]
[1680556738768,0.03853603,27559.0,27556.0,0.03318]
[1680556739004,0.025778,27558.0,27556.0,0.0732]
[1680556739484,0.2025398,27561.0,27556.0,0.35471056]
[1680556739485,0.0025398,27561.0,27556.0,0.35471056]
[1680556739711,0.0025398,27561.0,27557.0,0.10275092]
[1680556739938,0.0025398,27561.0,27558.0,0.041874]
[1680556740173,0.0025398,27561.0,27560.0,0.35471056]
[1680556740405,0.0025398,27561.0,27560.0,0.39637356]
[1680556740629,0.0025398,27561.0,27560.0,0.82000762]
[1680556740850,0.0025398,27561.0,27560.0,0.78437356]
[1680556741303,0.0025398,27561.0,27560.0,0.85957356]
[1680556741569,0.0025398,27561.0,27560.0,0.87789556]
[1680556741795,0.0025398,27561.0,27560.0,0.85975356]
[1680556742248,0.0025398,27561.0,27560.0,0.505043]
[1680556742484,0.0025398,27561.0,27560.0,0.57377108]
[1680556742716,3.98e-05,27561.0,27560.0,0.91399956]
[1680556742978,0.0015,27565.0,27560.0,0.91399956]
[1680556742979,0.0015,27565.0,27562.0,0.3795]
[1680556743214,0.0015,27565.0,27561.0,0.2052773]
[1680556743215,0.0015,27565.0,27563.0,0.050621]
[1680556743448,0.0015,27565.0,27564.0,0.040238]
[1680556743680,0.010882,27568.0,27564.0,0.048738]
[1680556743928,0.010882,27568.0,27563.0,0.05558983]
[1680556744648,0.02255001,27571.0,27567.0,0.13566906]
[1680556744873,0.02255001,27571.0,27568.0,0.025]
[1680556745099,0.03343101,27571.0,27568.0,0.025]
[1680556745334,0.0257234,27575.0,27570.0,0.35471056]